fUST/lending_fUST_20260519
["ID","MTS","AMOUNT","RATE_DAILY","PERIOD"]
[422614604,1779157839000,-500.0,0.00013698,2]
[422614614,1779157839000,-1064.63,0.00013698,2]
[422614609,1779157839000,-500.0,0.00013698,2]
[422614611,1779157839000,-500.0,0.00013698,2]
[422614610,1779157839000,-1064.63,0.00013698,2]
[422614616,1779157839000,-1064.63,0.00013698,2]
[422614617,1779157839000,-227.84124524,0.00013698,2]
[422614627,1779157839000,-1064.63,0.00013698,2]
[422614624,1779157839000,-1936.67,0.00013698,2]
[422614620,1779157839000,-1064.63,0.00013698,2]
[422614607,1779157839000,-573.86463493,0.00013698,2]
[422614591,1779157839000,-2153.4,0.00013698,2]
[422614583,1779157839000,-2153.4,0.00013698,2]
[422614589,1779157839000,-2153.4,0.00013698,2]
[422614628,1779157839000,-1936.67,0.00013698,2]
[422614558,1779157839000,-500.0,0.00013697,2]
[422614560,1779157839000,-500.0,0.00013697,2]
[422614564,1779157839000,-386.93619935,0.00013697,2]
[422614562,1779157839000,-500.0,0.00013697,2]
[422614565,1779157839000,-500.0,0.00013697,2]
[422614561,1779157839000,-500.0,0.00013697,2]
[422614566,1779157839000,-500.0,0.00013697,2]
[422614567,1779157839000,-500.0,0.00013697,2]
[422614568,1779157839000,-500.0,0.00013697,2]
[422614570,1779157839000,-2153.4,0.00013698,2]
[422614569,1779157839000,-2153.4,0.00013698,2]
[422614578,1779157839000,-2153.4,0.00013698,2]
[422614571,1779157839000,-2153.4,0.00013698,2]
[422614572,1779157839000,-2153.4,0.00013698,2]
[422614573,1779157839000,-2153.4,0.00013698,2]
[422614574,1779157839000,-2153.4,0.00013698,2]
[422614575,1779157839000,-2153.4,0.00013698,2]
[422614577,1779157839000,-2153.4,0.00013698,2]
[422614576,1779157839000,-2153.4,0.00013698,2]
[422614579,1779157839000,-2153.4,0.00013698,2]
[422614580,1779157839000,-2153.4,0.00013698,2]
[422614581,1779157839000,-2153.4,0.00013698,2]
[422614584,1779157839000,-2153.4,0.00013698,2]
[422614582,1779157839000,-2153.4,0.00013698,2]
[422614585,1779157839000,-2153.4,0.00013698,2]
[422614587,1779157839000,-2153.4,0.00013698,2]
[422614588,1779157839000,-2153.4,0.00013698,2]
[422614586,1779157839000,-2153.4,0.00013698,2]
[422614590,1779157839000,-2153.4,0.00013698,2]
[422614626,1779157839000,-1936.67,0.00013698,2]
[422614678,1779157839000,-1019.14,0.00013698,2]
[422614619,1779157839000,-1064.63,0.00013698,2]
[422614660,1779157839000,-1936.67,0.00013698,2]
[422614665,1779157839000,-1019.14,0.00013698,2]
[422614657,1779157839000,-1936.67,0.00013698,2]
[422614668,1779157839000,-1019.14,0.00013698,2]
[422614661,1779157839000,-1936.69652618,0.00013698,2]
[422614659,1779157839000,-1936.67,0.00013698,2]
[422614663,1779157839000,-1019.14,0.00013698,2]
[422614664,1779157839000,-1019.14,0.00013698,2]
[422614662,1779157839000,-504.09156054,0.00013698,2]
[422614667,1779157839000,-1019.14,0.00013698,2]
[422614666,1779157839000,-1019.14,0.00013698,2]
[422614669,1779157839000,-1019.14,0.00013698,2]
[422614673,1779157839000,-1019.14,0.00013698,2]
[422614674,1779157839000,-1019.14,0.00013698,2]
[422614679,1779157839000,-1019.14,0.00013698,2]
[422614671,1779157839000,-1019.14,0.00013698,2]
[422614681,1779157839000,-1019.14,0.00013698,2]
[422614677,1779157839000,-1019.14,0.00013698,2]
[422614676,1779157839000,-1019.14,0.00013698,2]
[422614680,1779157839000,-1019.14,0.00013698,2]
[422614675,1779157839000,-1019.14,0.00013698,2]
[422614670,1779157839000,-1019.14,0.00013698,2]
[422614672,1779157839000,-1019.14,0.00013698,2]
[422614682,1779157839000,-1019.14,0.00013698,2]
[422614685,1779157839000,-1019.14,0.00013698,2]
[422614684,1779157839000,-1019.14,0.00013698,2]
[422614686,1779157839000,-1019.31255176,0.00013698,2]
[422614625,1779157839000,-1064.63,0.00013698,2]
[422614687,1779157839000,-151.0,0.00013698,2]
[422614658,1779157839000,-1936.67,0.00013698,2]
[422614651,1779157839000,-1064.85115834,0.00013698,2]
[422614683,1779157839000,-1019.14,0.00013698,2]
[422614649,1779157839000,-1064.63,0.00013698,2]
[422614656,1779157839000,-1936.67,0.00013698,2]
[422614618,1779157839000,-1064.63,0.00013698,2]
[422614622,1779157839000,-1064.63,0.00013698,2]
[422614623,1779157839000,-1064.63,0.00013698,2]
[422614629,1779157839000,-1064.63,0.00013698,2]
[422614630,1779157839000,-1936.67,0.00013698,2]
[422614632,1779157839000,-1936.67,0.00013698,2]
[422614633,1779157839000,-1064.63,0.00013698,2]
[422614631,1779157839000,-1064.63,0.00013698,2]
[422614634,1779157839000,-1936.67,0.00013698,2]
[422614635,1779157839000,-1064.63,0.00013698,2]
[422614640,1779157839000,-1936.67,0.00013698,2]
[422614638,1779157839000,-1936.67,0.00013698,2]
[422614637,1779157839000,-1064.63,0.00013698,2]
[422614621,1779157839000,-1064.63,0.00013698,2]
[422614648,1779157839000,-1936.67,0.00013698,2]
[422614636,1779157839000,-1936.67,0.00013698,2]
[422614639,1779157839000,-1064.63,0.00013698,2]
[422614642,1779157839000,-1936.67,0.00013698,2]
[422614643,1779157839000,-1064.63,0.00013698,2]
[422614654,1779157839000,-1936.67,0.00013698,2]
[422614652,1779157839000,-1936.67,0.00013698,2]
[422614647,1779157839000,-1064.63,0.00013698,2]
[422614645,1779157839000,-1064.63,0.00013698,2]
[422614641,1779157839000,-1064.63,0.00013698,2]
[422614653,1779157839000,-1936.67,0.00013698,2]
[422614646,1779157839000,-1936.67,0.00013698,2]
[422614644,1779157839000,-1936.67,0.00013698,2]
[422614650,1779157839000,-1936.67,0.00013698,2]
[422614655,1779157839000,-1936.67,0.00013698,2]
[422614726,1779157840000,-500.0,0.00013698,2]
[422614743,1779157840000,-500.0,0.00013698,2]
[422614724,1779157840000,-500.0,0.00013698,2]
[422614733,1779157840000,-500.0,0.00013698,2]
[422614723,1779157840000,-500.0,0.00013698,2]
[422614719,1779157840000,-500.0,0.00013698,2]
[422614731,1779157840000,-500.0,0.00013698,2]
[422614725,1779157840000,-500.0,0.00013698,2]
[422614728,1779157840000,-500.0,0.00013698,2]
[422614727,1779157840000,-500.0,0.00013698,2]
[422614734,1779157840000,-500.0,0.00013698,2]
[422614729,1779157840000,-500.0,0.00013698,2]
[422614730,1779157840000,-500.0,0.00013698,2]
[422614747,1779157840000,-500.0,0.00013698,2]
[422614735,1779157840000,-500.0,0.00013698,2]
[422614722,1779157840000,-500.0,0.00013698,2]
[422614736,1779157840000,-500.0,0.00013698,2]
[422614738,1779157840000,-500.0,0.00013698,2]
[422614737,1779157840000,-500.0,0.00013698,2]
[422614748,1779157840000,-500.0,0.00013698,2]
[422614746,1779157840000,-500.0,0.00013698,2]
[422614745,1779157840000,-500.0,0.00013698,2]
[422614740,1779157840000,-500.0,0.00013698,2]
[422614739,1779157840000,-500.0,0.00013698,2]
[422614742,1779157840000,-500.0,0.00013698,2]
[422614741,1779157840000,-500.0,0.00013698,2]
[422614715,1779157840000,-880.35,0.00013698,2]
[422614732,1779157840000,-585.62086939,0.00013698,2]
[422614712,1779157840000,-880.35,0.00013698,2]
[422614704,1779157840000,-880.35,0.00013698,2]
[422614716,1779157840000,-880.35,0.00013698,2]
[422614744,1779157840000,-500.0,0.00013698,2]
[422614694,1779157840000,-880.35,0.00013698,2]
[422614691,1779157840000,-151.0,0.00013698,2]
[422614695,1779157840000,-880.35,0.00013698,2]
[422614692,1779157840000,-151.0,0.00013698,2]
[422614689,1779157840000,-151.0,0.00013698,2]
[422614693,1779157840000,-294.899657,0.00013698,2]
[422614690,1779157840000,-151.0,0.00013698,2]
[422614688,1779157840000,-151.0,0.00013698,2]
[422614696,1779157840000,-880.35,0.00013698,2]
[422614700,1779157840000,-880.35,0.00013698,2]
[422614698,1779157840000,-880.35,0.00013698,2]
[422614701,1779157840000,-880.35,0.00013698,2]
[422614708,1779157840000,-880.35,0.00013698,2]
[422614699,1779157840000,-880.35,0.00013698,2]
[422614707,1779157840000,-880.35,0.00013698,2]
[422614697,1779157840000,-880.35,0.00013698,2]
[422614706,1779157840000,-880.35,0.00013698,2]
[422614702,1779157840000,-880.35,0.00013698,2]
[422614705,1779157840000,-880.35,0.00013698,2]
[422614703,1779157840000,-880.35,0.00013698,2]
[422614714,1779157840000,-880.35,0.00013698,2]
[422614709,1779157840000,-880.35,0.00013698,2]
[422614711,1779157840000,-880.35,0.00013698,2]
[422614718,1779157840000,-500.0,0.00013698,2]
[422614710,1779157840000,-880.35,0.00013698,2]
[422614713,1779157840000,-880.35,0.00013698,2]
[422614717,1779157840000,-880.39277638,0.00013698,2]
[422614720,1779157840000,-500.0,0.00013698,2]
[422614721,1779157840000,-500.0,0.00013698,2]
[422614749,1779157840000,-500.0,0.00013698,2]
[422614770,1779157840000,-665.02,0.00013698,2]
[422614760,1779157840000,-665.02,0.00013698,2]
[422614785,1779157840000,-1000.0,0.00013698,2]
[422614781,1779157840000,-500.0,0.00013698,2]
[422614787,1779157840000,-1000.0,0.00013698,2]
[422614784,1779157840000,-294.32905919,0.00013698,2]
[422614782,1779157840000,-500.0,0.00013698,2]
[422614792,1779157840000,-151.0,0.00013698,2]
[422614791,1779157840000,-151.0,0.00013698,2]
[422614794,1779157840000,-151.0,0.00013698,2]
[422614795,1779157840000,-151.0,0.00013698,2]
[422614796,1779157840000,-151.0,0.00013698,2]
[422614793,1779157840000,-156.61932009,0.00013698,2]
[422614797,1779157840000,-151.0,0.00013698,2]
[422614805,1779157840000,-151.0,0.00013699,2]
[422614807,1779157840000,-193.51821,0.00013699,2]
[422614799,1779157840000,-1000.0,0.00013699,2]
[422614803,1779157840000,-2987.8604062,0.00013699,2]
[422614804,1779157840000,-1000.0,0.00013699,2]
[422614800,1779157840000,-670.67687293,0.00013699,2]
[422614801,1779157840000,-889.85,0.00013699,2]
[422614808,1779157840000,-341.946134,0.00013699,2]
[422614806,1779157840000,-151.0,0.00013699,2]
[422614798,1779157840000,-1000.0,0.00013699,2]
[422614809,1779157840000,-341.946134,0.00013699,2]
[422614802,1779157840000,-180.0180018,0.00013699,2]
[422614811,1779157840000,-341.946134,0.00013699,2]
[422614812,1779157840000,-341.946134,0.00013699,2]
[422614810,1779157840000,-341.946134,0.00013699,2]
[422614813,1779157840000,-341.946134,0.00013699,2]
[422614751,1779157840000,-500.0,0.00013698,2]
[422614779,1779157840000,-500.0,0.00013698,2]
[422614783,1779157840000,-500.0,0.00013698,2]
[422614767,1779157840000,-665.02,0.00013698,2]
[422614790,1779157840000,-151.0,0.00013698,2]
[422614761,1779157840000,-665.02,0.00013698,2]
[422614750,1779157840000,-500.0,0.00013698,2]
[422614752,1779157840000,-614.82195388,0.00013698,2]
[422614758,1779157840000,-665.02,0.00013698,2]
[422614755,1779157840000,-665.02,0.00013698,2]
[422614759,1779157840000,-665.02,0.00013698,2]
[422614756,1779157840000,-665.02,0.00013698,2]
[422614757,1779157840000,-665.02,0.00013698,2]
[422614753,1779157840000,-184.650215,0.00013698,2]
[422614754,1779157840000,-665.02,0.00013698,2]
[422614762,1779157840000,-665.02,0.00013698,2]
[422614763,1779157840000,-665.02,0.00013698,2]
[422614766,1779157840000,-665.02,0.00013698,2]
[422614764,1779157840000,-665.02,0.00013698,2]
[422614789,1779157840000,-1017.57509145,0.00013698,2]
[422614775,1779157840000,-665.02,0.00013698,2]
[422614765,1779157840000,-665.02,0.00013698,2]
[422614777,1779157840000,-665.18510961,0.00013698,2]
[422614786,1779157840000,-1000.0,0.00013698,2]
[422614778,1779157840000,-500.0,0.00013698,2]
[422614769,1779157840000,-665.02,0.00013698,2]
[422614768,1779157840000,-665.02,0.00013698,2]
[422614788,1779157840000,-1000.0,0.00013698,2]
[422614772,1779157840000,-665.02,0.00013698,2]
[422614774,1779157840000,-665.02,0.00013698,2]
[422614771,1779157840000,-665.02,0.00013698,2]
[422614780,1779157840000,-500.0,0.00013698,2]
[422614773,1779157840000,-665.02,0.00013698,2]
[422614776,1779157840000,-665.02,0.00013698,2]
[422614854,1779157841000,-151.0,0.00013699,2]
[422614857,1779157841000,-151.0,0.00013699,2]
[422614856,1779157841000,-151.0,0.00013699,2]
[422614858,1779157841000,-151.0,0.00013699,2]
[422614863,1779157841000,-151.0,0.00013699,2]
[422614846,1779157841000,-477.2612251,0.00013699,2]
[422614855,1779157841000,-151.0,0.00013699,2]
[422614852,1779157841000,-296.60117267,0.00013699,3]
[422614853,1779157841000,-151.0,0.00013699,2]
[422614851,1779157841000,-662.36327419,0.00013699,7]
[422614859,1779157841000,-151.0,0.00013699,2]
[422614862,1779157841000,-151.0,0.00013699,2]
[422614860,1779157841000,-151.0,0.00013699,2]
[422614875,1779157841000,-151.0,0.00013699,2]
[422614868,1779157841000,-151.0,0.00013699,2]
[422614877,1779157841000,-151.0,0.00013699,2]
[422614876,1779157841000,-151.0,0.00013699,2]
[422614865,1779157841000,-151.0,0.00013699,2]
[422614842,1779157841000,-477.34911573,0.00013699,7]
[422614864,1779157841000,-151.0,0.00013699,2]
[422614869,1779157841000,-151.0,0.00013699,2]
[422614870,1779157841000,-151.0,0.00013699,2]
[422614871,1779157841000,-151.0,0.00013699,2]
[422614867,1779157841000,-151.0,0.00013699,2]
[422614866,1779157841000,-151.0,0.00013699,2]
[422614874,1779157841000,-151.0,0.00013699,2]
[422614873,1779157841000,-151.0,0.00013699,2]
[422614872,1779157841000,-151.0,0.00013699,2]
[422614861,1779157841000,-151.0,0.00013699,2]
[422614844,1779157841000,-159.08707503,0.00013699,2]
[422614850,1779157841000,-496.77245564,0.00013699,7]
[422614843,1779157841000,-716.02367359,0.00013699,7]
[422614815,1779157841000,-341.946134,0.00013699,2]
[422614822,1779157841000,-775.903699,0.00013699,2]
[422614817,1779157841000,-341.946134,0.00013699,2]
[422614823,1779157841000,-775.903699,0.00013699,2]
[422614818,1779157841000,-341.946134,0.00013699,2]
[422614821,1779157841000,-18866.6134111,0.00013699,2]
[422614816,1779157841000,-341.946134,0.00013699,2]
[422614819,1779157841000,-341.946134,0.00013699,2]
[422614820,1779157841000,-1023.206577,0.00013699,2]
[422614814,1779157841000,-341.946134,0.00013699,2]
[422614824,1779157841000,-775.903699,0.00013699,2]
[422614825,1779157841000,-775.903699,0.00013699,2]
[422614833,1779157841000,-775.903699,0.00013699,2]
[422614834,1779157841000,-775.903699,0.00013699,2]
[422614840,1779157841000,-4860.522942,0.00013699,2]
[422614836,1779157841000,-775.903699,0.00013699,2]
[422614828,1779157841000,-775.903699,0.00013699,2]
[422614829,1779157841000,-775.903699,0.00013699,2]
[422614883,1779157841000,-151.0,0.00013699,2]
[422614832,1779157841000,-775.903699,0.00013699,2]
[422614835,1779157841000,-775.903699,0.00013699,2]
[422614827,1779157841000,-775.903699,0.00013699,2]
[422614830,1779157841000,-775.903699,0.00013699,2]
[422614838,1779157841000,-151.0,0.00013699,2]
[422614848,1779157841000,-165.59081855,0.00013699,7]
[422614849,1779157841000,-331.1816371,0.00013699,7]
[422614837,1779157841000,-775.903699,0.00013699,2]
[422614839,1779157841000,-181.316699,0.00013699,2]
[422614841,1779157841000,-238.67455786,0.00013699,7]
[422614845,1779157841000,-318.17415007,0.00013699,2]
[422614826,1779157841000,-775.903699,0.00013699,2]
[422614878,1779157841000,-151.0,0.00013699,2]
[422614831,1779157841000,-775.903699,0.00013699,2]
[422614890,1779157841000,-151.0,0.00013699,2]
[422614917,1779157841000,-151.0,0.00013699,2]
[422614915,1779157841000,-775.903691,0.00013699,2]
[422614918,1779157841000,-151.54,0.000137,2]
[422614920,1779157841000,-557.5788265,0.00013809,2]
[422614930,1779157841000,-599.60298507,0.00013919,2]
[422614931,1779157841000,-414.0,0.00013967,2]
[422614927,1779157841000,-1983.43457329,0.000139,2]
[422614929,1779157841000,-204.5748434,0.00013919,2]
[422614932,1779157841000,-889.85,0.00013973,2]
[422614922,1779157841000,-1000.0,0.00013858,2]
[422614921,1779157841000,-157.71,0.00013839,2]
[422614933,1779157841000,-621.78829552,0.00013974,2]
[422614924,1779157841000,-578.20924308,0.00013864,2]
[422614923,1779157841000,-500.0,0.00013858,2]
[422614907,1779157841000,-151.0,0.00013699,2]
[422614919,1779157841000,-537.6845,0.00013754,2]
[422614926,1779157841000,-1354.1,0.000139,2]
[422614928,1779157841000,-160.0,0.00013919,2]
[422614934,1779157841000,-827.95409274,0.00013985,7]
[422614936,1779157841000,-151.0,0.00013985,2]
[422614935,1779157841000,-795.43537517,0.00013985,2]
[422614938,1779157841000,-341.946134,0.00013985,2]
[422614944,1779157841000,-6326.23149862,0.00014,2]
[422614937,1779157841000,-151.0,0.00013985,2]
[422614941,1779157841000,-341.946124,0.00013985,2]
[422614942,1779157841000,-160.0,0.00013999,2]
[422614939,1779157841000,-341.946134,0.00013985,2]
[422614940,1779157841000,-341.946134,0.00013985,2]
[422614943,1779157841000,-140771.12948077,0.00014,2]
[422614884,1779157841000,-151.0,0.00013699,2]
[422614925,1779157841000,-151.54,0.000139,2]
[422614913,1779157841000,-775.903699,0.00013699,2]
[422614847,1779157841000,-636.34830014,0.00013699,2]
[422614909,1779157841000,-341.946134,0.00013699,2]
[422614886,1779157841000,-151.0,0.00013699,2]
[422614879,1779157841000,-151.0,0.00013699,2]
[422614885,1779157841000,-151.0,0.00013699,2]
[422614889,1779157841000,-151.0,0.00013699,2]
[422614882,1779157841000,-151.0,0.00013699,2]
[422614887,1779157841000,-151.0,0.00013699,2]
[422614880,1779157841000,-151.0,0.00013699,2]
[422614891,1779157841000,-151.0,0.00013699,2]
[422614888,1779157841000,-151.0,0.00013699,2]
[422614881,1779157841000,-151.0,0.00013699,2]
[422614903,1779157841000,-172.57037595,0.00013699,2]
[422614899,1779157841000,-151.0,0.00013699,2]
[422614892,1779157841000,-151.0,0.00013699,2]
[422614895,1779157841000,-151.0,0.00013699,2]
[422614898,1779157841000,-151.0,0.00013699,2]
[422614916,1779157841000,-151.0,0.00013699,2]
[422614894,1779157841000,-151.0,0.00013699,2]
[422614914,1779157841000,-775.903699,0.00013699,2]
[422614906,1779157841000,-151.0,0.00013699,2]
[422614908,1779157841000,-341.946134,0.00013699,2]
[422614905,1779157841000,-1000.0,0.00013699,2]
[422614912,1779157841000,-775.903699,0.00013699,2]
[422614911,1779157841000,-341.946134,0.00013699,2]
[422614910,1779157841000,-341.946134,0.00013699,2]
[422614896,1779157841000,-151.0,0.00013699,2]
[422614902,1779157841000,-151.0,0.00013699,2]
[422614901,1779157841000,-151.0,0.00013699,2]
[422614897,1779157841000,-151.0,0.00013699,2]
[422614893,1779157841000,-151.0,0.00013699,2]
[422614900,1779157841000,-151.0,0.00013699,2]
[422614904,1779157841000,-500.0,0.00013699,2]
[422614953,1779157843000,-456.0,0.00014,2]
[422614952,1779157843000,-3940.33963094,0.00014,2]
[422614954,1779157843000,-403.29280148,0.00014,2]
[422614975,1779157847000,-30432.35472583,0.00014,2]
[422614977,1779157847000,-3782.5346195,0.00014,2]
[422614976,1779157847000,-35136.90906324,0.00014,2]
[422614982,1779157849000,-897.44031782,0.00014,2]
[422615055,1779159032000,-3408.17778438,0.00011347,2]
[422615053,1779159032000,-300.0,0.00011346,2]
[422615043,1779159032000,-132.06160692,0.00010981,2]
[422615040,1779159032000,-54.45811007,0.00010981,2]
[422615038,1779159032000,-179.0,0.00010959,3]
[422615037,1779159032000,-200.0,0.0001072,2]
[422615051,1779159032000,-3827.55743089,0.00011247,2]
[422615047,1779159032000,-1294.16881357,0.00011047,2]
[422615045,1779159032000,-273.83257325,0.00011047,2]
[422615049,1779159032000,-3487.91317755,0.00011147,2]
[422615126,1779159044000,-299.59696993,0.00011447,2]
[422615125,1779159044000,-441.88303007,0.00011347,2]
[422615163,1779159047000,-500.0,0.00013397,2]
[422615144,1779159047000,-500.0,0.0001319,2]
[422615146,1779159047000,-557.5788265,0.00013259,2]
[422615148,1779159047000,-578.20924308,0.00013314,2]
[422615149,1779159047000,-151.0,0.00013323,2]
[422615141,1779159047000,-500.0,0.00012916,2]
[422615151,1779159047000,-599.60298507,0.00013369,2]
[422615147,1779159047000,-500.0,0.00013291,2]
[422615153,1779159047000,-500.0,0.00013397,2]
[422615150,1779159047000,-151.0,0.00013323,2]
[422615143,1779159047000,-6087.11347495,0.00013083,2]
[422615130,1779159047000,-1636.01585486,0.00011447,2]
[422615142,1779159047000,-220.09326605,0.00012981,2]
[422615139,1779159047000,-420.0,0.00012464,2]
[422615134,1779159047000,-4936.65305632,0.00011647,2]
[422615140,1779159047000,-500.0,0.00012642,2]
[422615137,1779159047000,-500.0,0.00012094,2]
[422615136,1779159047000,-174.71611488,0.00011964,2]
[422615135,1779159047000,-500.0,0.0001182,2]
[422615132,1779159047000,-500.0,0.00011546,2]
[422615131,1779159047000,-2276.59562665,0.00011447,2]
[422615133,1779159047000,-4574.49412093,0.00011547,2]
[422615145,1779159047000,-537.6845,0.00013204,2]
[422615138,1779159047000,-500.0,0.00012368,2]
[422615164,1779159047000,-450.032785,0.00013397,2]
[422615154,1779159047000,-500.0,0.00013397,2]
[422615152,1779159047000,-500.0,0.00013397,2]
[422615179,1779159047000,-13805.43498324,0.00013398,2]
[422615180,1779159047000,-45168.23768989,0.00013398,2]
[422615176,1779159047000,-500.0,0.00013397,2]
[422615174,1779159047000,-500.0,0.00013397,2]
[422615177,1779159047000,-500.0,0.00013397,2]
[422615172,1779159047000,-500.0,0.00013397,2]
[422615173,1779159047000,-500.0,0.00013397,2]
[422615178,1779159047000,-615.0229495,0.00013397,2]
[422615166,1779159047000,-500.0,0.00013397,2]
[422615170,1779159047000,-500.0,0.00013397,2]
[422615167,1779159047000,-500.0,0.00013397,2]
[422615175,1779159047000,-500.0,0.00013397,2]
[422615168,1779159047000,-500.0,0.00013397,2]
[422615155,1779159047000,-628.71752347,0.00013397,2]
[422615158,1779159047000,-500.0,0.00013397,2]
[422615157,1779159047000,-227.27697408,0.00013397,2]
[422615156,1779159047000,-500.0,0.00013397,2]
[422615162,1779159047000,-500.0,0.00013397,2]
[422615171,1779159047000,-500.0,0.00013397,2]
[422615160,1779159047000,-558.00612017,0.00013397,2]
[422615159,1779159047000,-617.55725585,0.00013397,2]
[422615165,1779159047000,-500.0,0.00013397,2]
[422615169,1779159047000,-500.0,0.00013397,2]
[422615161,1779159047000,-500.0,0.00013397,2]
[422615181,1779159048000,-3660.66458438,0.00013398,2]
[422615200,1779160231000,-246.77160382,0.00012619,2]
[422615199,1779160231000,-212.65661878,0.00012619,2]
[422615196,1779160231000,-151.0,0.00012619,2]
[422615198,1779160231000,-252.81812337,0.00012619,2]
[422615193,1779160231000,-179.40055326,0.00010818,2]
[422615197,1779160231000,-178.45154063,0.00012619,2]
[422615194,1779160231000,-184.0,0.00010959,3]
[422615195,1779160231000,-188.18771045,0.00011106,2]
[422615201,1779160232000,-243.342,0.00012687,2]
[422615203,1779160232000,-300.0,0.00012687,2]
[422615205,1779160232000,-4815.04167755,0.00012688,2]
[422615204,1779160232000,-3709.88639618,0.00012688,2]
[422615202,1779160232000,-500.0,0.00012687,2]
[422615242,1779160238000,-811.51114452,0.00012688,2]
[422615256,1779160238000,-222.3113537,0.00012688,2]
[422615254,1779160238000,-1311.2922494,0.00012688,2]
[422615252,1779160238000,-15199.8451823,0.00012688,2]
[422615251,1779160238000,-3528.76638085,0.00012688,2]
[422615268,1779160238000,-1856.86616958,0.00012688,2]
[422615258,1779160238000,-7207.71119718,0.00012688,2]
[422615859,1779160243000,-3215.89712044,0.00012688,2]
[422615861,1779160243000,-947.30982905,0.00012688,2]
[422615878,1779160243000,-500.0,0.00013196,2]
[422615880,1779160243000,-500.0,0.00013196,2]
[422615869,1779160243000,-169.3722479,0.00012688,2]
[422615867,1779160243000,-16243.74158785,0.00012688,2]
[422615873,1779160243000,-222.06149833,0.00013106,2]
[422615888,1779160243000,-506.44512446,0.00013196,2]
[422615884,1779160243000,-500.0,0.00013196,2]
[422615882,1779160243000,-500.0,0.00013196,2]
[422615890,1779160243000,-500.0,0.00013196,2]
[422615875,1779160243000,-257.35652573,0.00013166,21]
[422615886,1779160243000,-330.51606465,0.00013196,2]
[422615876,1779160243000,-537.6845,0.00013189,2]
[422615915,1779160243000,-2292.89147835,0.00013197,2]
[422615899,1779160243000,-18402.70203543,0.00013197,2]
[422615897,1779160243000,-250.0,0.00013196,2]
[422615871,1779160243000,-500.0,0.00012961,2]
[422615895,1779160243000,-500.0,0.00013196,2]
[422615902,1779160243000,-13998.86834645,0.00013197,2]
[422615893,1779160243000,-500.0,0.00013196,2]
[422615910,1779160243000,-12921.83216058,0.00013197,2]
[422615908,1779160243000,-14596.35505103,0.00013197,2]
[422615904,1779160243000,-272.01052524,0.00013197,2]
[422615906,1779160243000,-11254.0,0.00013197,2]
[422615912,1779160243000,-760.86230765,0.00013197,2]
[422615892,1779160243000,-500.0,0.00013196,2]
[422616317,1779160246000,-18261.05941191,0.00013197,2]
[422616325,1779160246000,-30056.59273744,0.00013197,2]
[422616310,1779160246000,-9795.11672157,0.00013197,2]
[422616319,1779160246000,-10695.5512453,0.00013197,2]
[422617360,1779160360000,331.02,0.00017808,120]
[422617366,1779160806000,6898.0,0.000135,120]
[422617410,1779161432000,-325.8907785,0.00011794,2]
[422617408,1779161432000,-179.98272627,0.00011779,2]
[422617413,1779161432000,-151.0,0.00011794,2]
[422617411,1779161432000,-456.5585624,0.00011794,2]
[422617406,1779161432000,-165.4066824,0.00011764,2]
[422617419,1779161432000,-962.82605013,0.00012196,2]
[422617415,1779161432000,-3139.02,0.00012,2]
[422617417,1779161432000,-862.0,0.00012195,2]
[422617502,1779161438000,-5847.59940972,0.00012796,2]